[Event "Late-Titled-Tuesday-Blitz-April-02-2024"]
[Site "Chess.com"]
[Date "2024.04.02"]
[Round "5"]
[White "ArmanGhevondyanchess"]
[Black "Der_Balak_3Halak"]
[Result "1-0"]
[WhiteElo "2604"]
[BlackElo "2431"]
[TimeControl "180+1"]
[EndTime "14:53:11 PDT"]
[Termination "ArmanGhevondyanchess won by resignation"]

1. Nf3 {[%clk 0:02:56.7]} 1... Nf6 {[%clk 0:02:59.5]} 2. g3 {[%clk 0:02:55.6]}
2... g6 {[%clk 0:02:59.3]} 3. d4 {[%clk 0:02:56.2]} 3... Bg7 {[%clk 0:03:00.2]}
4. Bg2 {[%clk 0:02:57.1]} 4... d5 {[%clk 0:03:00.1]} 5. O-O {[%clk 0:02:58]}
5... O-O {[%clk 0:03:00.2]} 6. b3 {[%clk 0:02:58.1]} 6... a5 {[%clk 0:02:59]} 7.
Bb2 {[%clk 0:02:58.3]} 7... a4 {[%clk 0:02:59.5]} 8. Ne5 {[%clk 0:02:57.8]} 8...
Nbd7 {[%clk 0:02:55.9]} 9. c4 {[%clk 0:02:56.3]} 9... c6 {[%clk 0:02:47.5]} 10.
bxa4 {[%clk 0:02:54.8]} 10... Nxe5 {[%clk 0:01:59.9]} 11. dxe5 {[%clk
0:02:47.8]} 11... Ng4 {[%clk 0:02:00.6]} 12. cxd5 {[%clk 0:02:45.9]} 12... Nxe5
{[%clk 0:02:00.1]} 13. Nc3 {[%clk 0:02:45.6]} 13... cxd5 {[%clk 0:01:54.1]} 14.
Nxd5 {[%clk 0:02:33.4]} 14... Bd7 {[%clk 0:01:39]} 15. Bxe5 {[%clk 0:01:50.8]}
15... Bxe5 {[%clk 0:01:36.8]} 16. Rb1 {[%clk 0:01:51.2]} 16... Bxa4 {[%clk
0:01:36.1]} 17. Qd3 {[%clk 0:01:47.2]} 17... Bc6 {[%clk 0:01:31.9]} 18. Rfd1
{[%clk 0:01:35.5]} 18... Ra4 {[%clk 0:00:51.1]} 19. Nf6+ {[%clk 0:01:30.3]}
19... Bxf6 {[%clk 0:00:44.7]} 20. Qxd8 {[%clk 0:01:31.2]} 20... Rxd8 {[%clk
0:00:45.3]} 21. Rxd8+ {[%clk 0:01:32.1]} 21... Kg7 {[%clk 0:00:46.2]} 22. Bxc6
{[%clk 0:01:29]} 22... bxc6 {[%clk 0:00:43.4]} 23. Rd2 {[%clk 0:01:28.4]} 23...
c5 {[%clk 0:00:42.3]} 24. Rc2 {[%clk 0:01:28.7]} 24... c4 {[%clk 0:00:39.9]} 25.
Kg2 {[%clk 0:01:19.3]} 25... c3 {[%clk 0:00:37.4]} 26. e3 {[%clk 0:01:19.7]}
26... e6 {[%clk 0:00:29.3]} 27. f4 {[%clk 0:01:19]} 27... Kf8 {[%clk 0:00:27.2]}
28. Kf3 {[%clk 0:01:19.3]} 28... Ke7 {[%clk 0:00:26.6]} 29. Rd1 {[%clk 0:01:20]}
29... Rb4 {[%clk 0:00:24.4]} 30. e4 {[%clk 0:01:17.2]} 30... Bd4 {[%clk
0:00:23.1]} 31. e5 {[%clk 0:01:11.4]} 31... f6 {[%clk 0:00:15.3]} 32. exf6+
{[%clk 0:01:10.6]} 32... Kxf6 {[%clk 0:00:16.2]} 33. Rd3 {[%clk 0:01:04.9]}
33... e5 {[%clk 0:00:16.3]} 34. fxe5+ {[%clk 0:01:04.8]} 34... Kxe5 {[%clk
0:00:15.9]} 35. Rd1 {[%clk 0:01:00.9]} 35... h5 {[%clk 0:00:13.4]} 36. Re2+
{[%clk 0:01:00.3]} 36... Kd5 {[%clk 0:00:13.8]} 37. Re8 {[%clk 0:00:58.9]} 37...
c2 {[%clk 0:00:06.5]} 38. Rd8+ {[%clk 0:00:58.3]} 38... Kc5 {[%clk 0:00:06.2]}
39. Rc1 {[%clk 0:00:55.8]} 39... Rb2 {[%clk 0:00:05.3]} 40. Rc8+ {[%clk
0:00:54.5]} 40... Kb4 {[%clk 0:00:05.8]} 41. R8xc2 {[%clk 0:00:55.4]} 41... Ka3
{[%clk 0:00:03.8]} 42. Rxb2 {[%clk 0:00:55.2]} 42... Kxb2 {[%clk 0:00:04]} 43.
Rd1 {[%clk 0:00:54]} 43... Be5 {[%clk 0:00:03.3]} 44. Rd5 {[%clk 0:00:53.5]}
44... Bc3 {[%clk 0:00:02.7]} 45. a4 {[%clk 0:00:52.4]} 45... Ka3 {[%clk
0:00:02.1]} 46. a5 {[%clk 0:00:52.5]} 1-0

[Event "Late-Titled-Tuesday-Blitz-April-02-2024"]
[Site "Chess.com"]
[Date "2024.04.02"]
[Round "5"]
[White "JaackCamel"]
[Black "1g60-1"]
[Result "1/2-1/2"]
[WhiteElo "2201"]
[BlackElo "2395"]
[TimeControl "180+1"]
[EndTime "14:53:11 PDT"]
[Termination "Game drawn by repetition"]

1. d4 {[%clk 0:03:00.9]} 1... e6 {[%clk 0:03:00.1]} 2. c4 {[%clk 0:03:00.2]}
2... f5 {[%clk 0:03:00.2]} 3. g3 {[%clk 0:02:59.7]} 3... Nf6 {[%clk 0:03:00.6]}
4. Bg2 {[%clk 0:02:59.6]} 4... Be7 {[%clk 0:03:01.3]} 5. Nf3 {[%clk 0:02:59.7]}
5... O-O {[%clk 0:03:02]} 6. O-O {[%clk 0:02:59.5]} 6... d6 {[%clk 0:03:02.7]}
7. Nc3 {[%clk 0:02:58]} 7... Ne4 {[%clk 0:03:02.5]} 8. Qc2 {[%clk 0:02:50.3]}
8... Nxc3 {[%clk 0:03:02.6]} 9. Qxc3 {[%clk 0:02:46.9]} 9... a5 {[%clk
0:03:02.8]} 10. b3 {[%clk 0:02:41]} 10... Bf6 {[%clk 0:02:55.3]} 11. Bb2 {[%clk
0:02:39.5]} 11... Nc6 {[%clk 0:02:55.2]} 12. Qd2 {[%clk 0:02:21.7]} 12... e5
{[%clk 0:02:47.9]} 13. d5 {[%clk 0:02:03.6]} 13... Nb8 {[%clk 0:02:37.8]} 14.
Rfe1 {[%clk 0:01:50.9]} 14... a4 {[%clk 0:02:31.7]} 15. b4 {[%clk 0:01:47.8]}
15... a3 {[%clk 0:02:19]} 16. Bc3 {[%clk 0:01:47.2]} 16... Qe8 {[%clk
0:02:14.6]} 17. e4 {[%clk 0:01:41.2]} 17... fxe4 {[%clk 0:02:08.2]} 18. Ng5
{[%clk 0:01:35.9]} 18... Bf5 {[%clk 0:01:36.4]} 19. Nxe4 {[%clk 0:01:31.3]}
19... Nd7 {[%clk 0:01:35.8]} 20. Rf1 {[%clk 0:01:19.4]} 20... Qg6 {[%clk
0:01:32]} 21. Rae1 {[%clk 0:01:17.8]} 21... Be7 {[%clk 0:01:28.2]} 22. Qe3
{[%clk 0:01:08.1]} 22... Nf6 {[%clk 0:01:25.5]} 23. f3 {[%clk 0:00:50.6]} 23...
Bxe4 {[%clk 0:01:17.5]} 24. fxe4 {[%clk 0:00:49]} 24... Ng4 {[%clk 0:01:17]} 25.
Qe2 {[%clk 0:00:43.1]} 25... Bg5 {[%clk 0:01:04.7]} 26. Bd2 {[%clk 0:00:37.8]}
26... Qh6 {[%clk 0:00:51.5]} 27. Qxg4 {[%clk 0:00:18.6]} 27... Bxd2 {[%clk
0:00:51]} 28. Rxf8+ {[%clk 0:00:12.9]} 28... Rxf8 {[%clk 0:00:50.6]} 29. Rf1
{[%clk 0:00:12.8]} 29... Qe3+ {[%clk 0:00:33.8]} 30. Kh1 {[%clk 0:00:12.5]}
30... Rxf1+ {[%clk 0:00:33.8]} 31. Bxf1 {[%clk 0:00:12.4]} 31... g6 {[%clk
0:00:21.8]} 32. Qe6+ {[%clk 0:00:12]} 32... Kg7 {[%clk 0:00:18.6]} 33. Qd7+
{[%clk 0:00:11.9]} 33... Kh6 {[%clk 0:00:16.5]} 34. Qh3+ {[%clk 0:00:11.5]}
34... Kg7 {[%clk 0:00:16.7]} 35. Qd7+ {[%clk 0:00:11.4]} 35... Kh6 {[%clk
0:00:14.9]} 36. Qh3+ {[%clk 0:00:11.3]} 36... Kg7 {[%clk 0:00:15.4]} 37. Qd7+
{[%clk 0:00:11.1]} 1/2-1/2

[Event "Late-Titled-Tuesday-Blitz-April-02-2024"]
[Site "Chess.com"]
[Date "2024.04.02"]
[Round "5"]
[White "KuzubovYuriy"]
[Black "Josetricks"]
[Result "1-0"]
[WhiteElo "2923"]
[BlackElo "2659"]
[TimeControl "180+1"]
[EndTime "14:53:12 PDT"]
[Termination "KuzubovYuriy won by resignation"]

1. d4 {[%clk 0:03:00.9]} 1... g6 {[%clk 0:02:59.2]} 2. e4 {[%clk 0:02:59.8]}
2... Bg7 {[%clk 0:02:59]} 3. c3 {[%clk 0:02:59.7]} 3... c6 {[%clk 0:02:59]} 4.
Bd3 {[%clk 0:02:55.8]} 4... d5 {[%clk 0:02:58]} 5. e5 {[%clk 0:02:55.8]} 5... f6
{[%clk 0:02:57.7]} 6. exf6 {[%clk 0:02:50.1]} 6... Nxf6 {[%clk 0:02:56.5]} 7.
Nf3 {[%clk 0:02:49.7]} 7... Bg4 {[%clk 0:02:55.9]} 8. Nbd2 {[%clk 0:02:49.6]}
8... O-O {[%clk 0:02:53]} 9. O-O {[%clk 0:02:49.2]} 9... Nfd7 {[%clk 0:02:52.1]}
10. Qb3 {[%clk 0:02:40.2]} 10... Qc7 {[%clk 0:02:46.1]} 11. Re1 {[%clk
0:02:31.8]} 11... Bxf3 {[%clk 0:02:37.7]} 12. Nxf3 {[%clk 0:02:31.9]} 12... Rxf3
{[%clk 0:02:38.3]} 13. gxf3 {[%clk 0:02:31.9]} 13... e5 {[%clk 0:02:39]} 14. c4
{[%clk 0:02:14.4]} 14... exd4 {[%clk 0:02:25.3]} 15. cxd5 {[%clk 0:02:13.6]}
15... Kh8 {[%clk 0:02:02.5]} 16. Re8+ {[%clk 0:02:07.4]} 16... Nf8 {[%clk
0:02:02.3]} 17. Bg5 {[%clk 0:01:58.5]} 17... Qf7 {[%clk 0:01:59.8]} 18. dxc6
{[%clk 0:01:52.7]} 18... Qxe8 {[%clk 0:01:48.6]} 19. cxb7 {[%clk 0:01:52.8]}
19... Nbd7 {[%clk 0:01:36.9]} 20. bxa8=Q {[%clk 0:01:52.1]} 20... Qxa8 {[%clk
0:01:37.8]} 21. Be4 {[%clk 0:01:49.1]} 21... Qe8 {[%clk 0:01:34]} 22. Rc1 {[%clk
0:01:41.2]} 22... h6 {[%clk 0:01:32.3]} 23. Bd2 {[%clk 0:01:34.1]} 23... Ne6
{[%clk 0:01:23.8]} 24. Bc6 {[%clk 0:01:17]} 24... Qe7 {[%clk 0:01:07.8]} 25. Re1
{[%clk 0:01:10.2]} 25... Ne5 {[%clk 0:01:05.5]} 26. Qb8+ {[%clk 0:01:07.3]}
26... Nf8 {[%clk 0:00:38.5]} 27. Bb4 {[%clk 0:00:53.4]} 27... Nxc6 {[%clk
0:00:25.3]} 28. Bxe7 {[%clk 0:00:52.2]} 28... Nxb8 {[%clk 0:00:24.6]} 29. Bxf8
{[%clk 0:00:52.9]} 29... Bxf8 {[%clk 0:00:24.2]} 30. Re8 {[%clk 0:00:53.5]}
30... Nd7 {[%clk 0:00:23.1]} 31. Rd8 {[%clk 0:00:53.9]} 31... Ne5 {[%clk
0:00:19.1]} 32. Rxf8+ {[%clk 0:00:53.5]} 32... Kg7 {[%clk 0:00:20]} 33. Rd8
{[%clk 0:00:52.9]} 33... Nxf3+ {[%clk 0:00:18.1]} 34. Kg2 {[%clk 0:00:53]} 34...
Ne1+ {[%clk 0:00:16.8]} 35. Kf1 {[%clk 0:00:51.8]} 35... Nf3 {[%clk 0:00:12.4]}
36. Ke2 {[%clk 0:00:51.6]} 36... Nxh2 {[%clk 0:00:08.6]} 37. Rxd4 {[%clk
0:00:51.7]} 37... h5 {[%clk 0:00:08.9]} 38. Ra4 {[%clk 0:00:50.7]} 38... Ng4
{[%clk 0:00:07.8]} 39. Rxa7+ {[%clk 0:00:46.9]} 39... Kh6 {[%clk 0:00:08.3]} 40.
a4 {[%clk 0:00:46.8]} 40... h4 {[%clk 0:00:08.8]} 41. Rc7 {[%clk 0:00:44.3]}
41... Kg5 {[%clk 0:00:02.5]} 42. a5 {[%clk 0:00:43.2]} 42... Kf4 {[%clk
0:00:03.1]} 43. a6 {[%clk 0:00:42.9]} 43... h3 {[%clk 0:00:04]} 44. a7 {[%clk
0:00:42.4]} 1-0

[Event "Late-Titled-Tuesday-Blitz-April-02-2024"]
[Site "Chess.com"]
[Date "2024.04.02"]
[Round "5"]
[White "rasmussvane"]
[Black "santosalberto1987"]
[Result "1-0"]
[WhiteElo "2890"]
[BlackElo "2516"]
[TimeControl "180+1"]
[EndTime "14:53:13 PDT"]
[Termination "rasmussvane won by resignation"]

1. d4 {[%clk 0:02:53.3]} 1... Nf6 {[%clk 0:02:59.7]} 2. Bg5 {[%clk 0:02:53]}
2... Ne4 {[%clk 0:02:59.2]} 3. Bf4 {[%clk 0:02:50.6]} 3... c5 {[%clk 0:02:58.6]}
4. d5 {[%clk 0:02:46.5]} 4... g6 {[%clk 0:02:55.2]} 5. f3 {[%clk 0:02:38.3]}
5... Nf6 {[%clk 0:02:53.4]} 6. e4 {[%clk 0:02:38.4]} 6... d6 {[%clk 0:02:52.3]}
7. Nc3 {[%clk 0:02:38]} 7... Bg7 {[%clk 0:02:52.3]} 8. Bc4 {[%clk 0:02:35]} 8...
O-O {[%clk 0:02:49.4]} 9. Nge2 {[%clk 0:02:35.1]} 9... Re8 {[%clk 0:02:47.4]}
10. O-O {[%clk 0:02:33.9]} 10... e6 {[%clk 0:02:44.6]} 11. dxe6 {[%clk
0:02:31.9]} 11... Bxe6 {[%clk 0:02:45.5]} 12. Bxe6 {[%clk 0:02:31.7]} 12... Rxe6
{[%clk 0:02:45.2]} 13. Qd2 {[%clk 0:02:28.3]} 13... Nc6 {[%clk 0:02:41.8]} 14.
Rad1 {[%clk 0:02:27.4]} 14... Qa5 {[%clk 0:02:24]} 15. Nd5 {[%clk 0:02:14.2]}
15... Qxd2 {[%clk 0:02:22.2]} 16. Rxd2 {[%clk 0:02:14.8]} 16... Rd8 {[%clk
0:02:17]} 17. Nec3 {[%clk 0:02:11.9]} 17... Nd4 {[%clk 0:02:12.3]} 18. Bg5
{[%clk 0:02:06.9]} 18... h6 {[%clk 0:02:06.7]} 19. Bxf6 {[%clk 0:02:06.9]} 19...
Bxf6 {[%clk 0:02:07.6]} 20. Nxf6+ {[%clk 0:02:07.4]} 20... Rxf6 {[%clk 0:02:08]}
21. Nd5 {[%clk 0:02:06.5]} 21... Re6 {[%clk 0:02:07.5]} 22. c3 {[%clk
0:02:06.7]} 22... Nc6 {[%clk 0:02:07.6]} 23. Rfd1 {[%clk 0:02:06.7]} 23... Ne5
{[%clk 0:01:49.9]} 24. b3 {[%clk 0:02:03.2]} 24... a6 {[%clk 0:01:44.6]} 25. Kf2
{[%clk 0:01:57.5]} 25... Kg7 {[%clk 0:01:43.1]} 26. h3 {[%clk 0:01:53.8]} 26...
Nc6 {[%clk 0:01:27.9]} 27. Nb6 {[%clk 0:01:50.9]} 27... Ne7 {[%clk 0:01:20.8]}
28. a4 {[%clk 0:01:46.2]} 28... f5 {[%clk 0:01:19.6]} 29. exf5 {[%clk
0:01:38.2]} 29... gxf5 {[%clk 0:01:12.9]} 30. a5 {[%clk 0:01:36.6]} 30... Kf6
{[%clk 0:01:07.8]} 31. Nd5+ {[%clk 0:01:32.3]} 31... Nxd5 {[%clk 0:01:07.8]} 32.
Rxd5 {[%clk 0:01:33.2]} 32... Ke7 {[%clk 0:00:47.5]} 33. Rxf5 {[%clk 0:01:32]}
33... Re8 {[%clk 0:00:46.9]} 34. Rd2 {[%clk 0:01:25.2]} 34... Kd7 {[%clk
0:00:45.9]} 35. Rxc5 {[%clk 0:01:24.5]} 35... Re5 {[%clk 0:00:42.3]} 36. Rxe5
{[%clk 0:01:24.5]} 36... Rxe5 {[%clk 0:00:43.2]} 37. b4 {[%clk 0:01:25.1]} 37...
Rb5 {[%clk 0:00:40.1]} 38. g4 {[%clk 0:01:23.8]} 38... Ke6 {[%clk 0:00:40]} 39.
f4 {[%clk 0:01:23]} 39... b6 {[%clk 0:00:39.6]} 40. axb6 {[%clk 0:01:22.7]}
40... Rxb6 {[%clk 0:00:40.5]} 41. Kf3 {[%clk 0:01:21.2]} 41... Rb5 {[%clk
0:00:40.9]} 42. Ra2 {[%clk 0:01:20.5]} 42... Rb6 {[%clk 0:00:39.7]} 43. Ke4
{[%clk 0:01:21]} 43... Rc6 {[%clk 0:00:39.5]} 44. Kd4 {[%clk 0:01:21.4]} 44...
d5 {[%clk 0:00:39.9]} 45. f5+ {[%clk 0:01:17.9]} 45... Kd6 {[%clk 0:00:39.9]}
46. Ra5 {[%clk 0:01:15.5]} 46... Rc4+ {[%clk 0:00:39.6]} 47. Kd3 {[%clk
0:01:16.1]} 47... Rc6 {[%clk 0:00:39.7]} 48. h4 {[%clk 0:01:16.1]} 48... Ke5
{[%clk 0:00:39.7]} 49. Rc5 {[%clk 0:01:11.4]} 49... Rb6 {[%clk 0:00:23.4]} 50.
g5 {[%clk 0:01:10.9]} 50... hxg5 {[%clk 0:00:23]} 51. hxg5 {[%clk 0:01:11.8]}
51... Kxf5 {[%clk 0:00:20.6]} 52. Rxd5+ {[%clk 0:01:12.3]} 52... Kg6 {[%clk
0:00:20.5]} 53. Kc4 {[%clk 0:01:12.6]} 53... Rc6+ {[%clk 0:00:20.4]} 54. Kb3
{[%clk 0:01:13.1]} 54... Rb6 {[%clk 0:00:19]} 55. c4 {[%clk 0:01:13.3]} 55...
Rc6 {[%clk 0:00:19.4]} 56. c5 {[%clk 0:01:13.2]} 56... Rc8 {[%clk 0:00:17.4]}
57. Ka4 {[%clk 0:01:12]} 57... Rb8 {[%clk 0:00:16.3]} 58. c6 {[%clk 0:01:12.1]}
58... Rc8 {[%clk 0:00:15]} 59. Rc5 {[%clk 0:01:12.6]} 1-0

[Event "Late-Titled-Tuesday-Blitz-April-02-2024"]
[Site "Chess.com"]
[Date "2024.04.02"]
[Round "5"]
[White "albi1999"]
[Black "tgpgoat"]
[Result "1-0"]
[WhiteElo "2609"]
[BlackElo "2434"]
[TimeControl "180+1"]
[EndTime "14:53:13 PDT"]
[Termination "albi1999 won by resignation"]

1. Nf3 {[%clk 0:03:00.1]} 1... Nf6 {[%clk 0:03:00.2]} 2. c4 {[%clk 0:02:58.3]}
2... e6 {[%clk 0:03:01.1]} 3. b3 {[%clk 0:02:55.7]} 3... d5 {[%clk 0:03:02]} 4.
Bb2 {[%clk 0:02:55.4]} 4... Be7 {[%clk 0:02:59.8]} 5. e3 {[%clk 0:02:54.5]} 5...
O-O {[%clk 0:02:58]} 6. Nc3 {[%clk 0:02:55]} 6... b6 {[%clk 0:02:57.5]} 7. Rc1
{[%clk 0:02:53]} 7... Bb7 {[%clk 0:02:57]} 8. cxd5 {[%clk 0:02:52.8]} 8... Nxd5
{[%clk 0:02:56.5]} 9. Qc2 {[%clk 0:02:48.6]} 9... c5 {[%clk 0:02:54.5]} 10. Nxd5
{[%clk 0:02:45.6]} 10... Bxd5 {[%clk 0:02:54]} 11. Bd3 {[%clk 0:02:45.1]} 11...
f5 {[%clk 0:02:47.3]} 12. Bc4 {[%clk 0:02:38.8]} 12... Nc6 {[%clk 0:02:45.9]}
13. O-O {[%clk 0:02:21.3]} 13... Nb4 {[%clk 0:02:37.2]} 14. Qb1 {[%clk
0:02:21.2]} 14... Bxf3 {[%clk 0:02:26]} 15. Bxe6+ {[%clk 0:02:00.5]} 15... Kh8
{[%clk 0:02:26]} 16. gxf3 {[%clk 0:02:01.4]} 16... Nd3 {[%clk 0:02:17.4]} 17.
Rcd1 {[%clk 0:01:50.5]} 17... Nxb2 {[%clk 0:02:14.9]} 18. Qxb2 {[%clk
0:01:51.4]} 18... Bf6 {[%clk 0:02:14.9]} 19. Qc2 {[%clk 0:01:50.2]} 19... f4
{[%clk 0:02:14.4]} 20. Bf5 {[%clk 0:01:41.6]} 20... g6 {[%clk 0:02:10.1]} 21.
Be4 {[%clk 0:01:40.4]} 21... Rc8 {[%clk 0:02:08.9]} 22. Qc4 {[%clk 0:01:37.3]}
22... Qd6 {[%clk 0:02:05.3]} 23. Kh1 {[%clk 0:01:36]} 23... Rce8 {[%clk
0:02:00.4]} 24. d4 {[%clk 0:01:33.2]} 24... cxd4 {[%clk 0:01:46.1]} 25. exd4
{[%clk 0:01:32.9]} 25... Qd7 {[%clk 0:01:37.5]} 26. Rfe1 {[%clk 0:01:20.2]}
26... Qh3 {[%clk 0:01:35.9]} 27. Qd3 {[%clk 0:01:06.2]} 27... Bh4 {[%clk
0:01:33.1]} 28. Re2 {[%clk 0:01:03.5]} 28... g5 {[%clk 0:01:04.6]} 29. Bf5
{[%clk 0:00:52.9]} 29... Rxe2 {[%clk 0:00:35.7]} 30. Bxh3 {[%clk 0:00:50.4]}
30... Rfe8 {[%clk 0:00:30.5]} 31. d5 {[%clk 0:00:38.7]} 31... Bxf2 {[%clk
0:00:25.7]} 32. Qc3+ {[%clk 0:00:35.2]} 32... R8e5 {[%clk 0:00:22.7]} 33. d6
{[%clk 0:00:29.7]} 33... Bc5 {[%clk 0:00:14.4]} 34. d7 {[%clk 0:00:26.2]} 34...
Be7 {[%clk 0:00:14.5]} 35. d8=Q+ {[%clk 0:00:25]} 35... Bxd8 {[%clk 0:00:15.1]}
36. Rxd8+ {[%clk 0:00:25.1]} 36... Kg7 {[%clk 0:00:16]} 37. Rd5 {[%clk
0:00:22.9]} 37... Re1+ {[%clk 0:00:16.2]} 38. Kg2 {[%clk 0:00:19.6]} 38... Re2+
{[%clk 0:00:16.6]} 39. Kf1 {[%clk 0:00:19.6]} 39... Re1+ {[%clk 0:00:17]} 40.
Qxe1 {[%clk 0:00:18.8]} 1-0

[Event "Late-Titled-Tuesday-Blitz-April-02-2024"]
[Site "Chess.com"]
[Date "2024.04.02"]
[Round "5"]
[White "Njal28"]
[Black "AryanTari"]
[Result "0-1"]
[WhiteElo "3053"]
[BlackElo "2976"]
[TimeControl "180+1"]
[EndTime "14:53:15 PDT"]
[Termination "AryanTari won by resignation"]

1. e4 {[%clk 0:03:00.9]} 1... e5 {[%clk 0:03:00]} 2. Nf3 {[%clk 0:03:00.2]} 2...
Nc6 {[%clk 0:03:00.4]} 3. Nc3 {[%clk 0:02:59.9]} 3... Nf6 {[%clk 0:03:00.4]} 4.
Bb5 {[%clk 0:03:00.5]} 4... Nd4 {[%clk 0:02:59.7]} 5. Nxd4 {[%clk 0:03:01.2]}
5... exd4 {[%clk 0:03:00.1]} 6. e5 {[%clk 0:03:02.1]} 6... dxc3 {[%clk
0:03:00.1]} 7. exf6 {[%clk 0:03:02.7]} 7... Qxf6 {[%clk 0:03:00.4]} 8. dxc3
{[%clk 0:03:03.4]} 8... Qe5+ {[%clk 0:02:59.9]} 9. Be2 {[%clk 0:03:04]} 9... Bc5
{[%clk 0:02:50.5]} 10. O-O {[%clk 0:03:04.3]} 10... O-O {[%clk 0:02:50.6]} 11.
Bd3 {[%clk 0:03:02.4]} 11... d5 {[%clk 0:02:27.8]} 12. Re1 {[%clk 0:03:00.3]}
12... Qf6 {[%clk 0:02:28.2]} 13. Be3 {[%clk 0:03:00.7]} 13... Bxe3 {[%clk
0:02:25.5]} 14. Rxe3 {[%clk 0:03:01.6]} 14... Be6 {[%clk 0:02:22.9]} 15. Qh5
{[%clk 0:02:54.7]} 15... g6 {[%clk 0:02:19.1]} 16. Qh6 {[%clk 0:02:54.2]} 16...
Rae8 {[%clk 0:02:15.1]} 17. Rae1 {[%clk 0:02:54.3]} 17... Bd7 {[%clk 0:02:13.1]}
18. Rxe8 {[%clk 0:02:54.9]} 18... Rxe8 {[%clk 0:02:13.5]} 19. Rxe8+ {[%clk
0:02:55.4]} 19... Bxe8 {[%clk 0:02:12]} 20. Qe3 {[%clk 0:02:56.3]} 20... Qe6
{[%clk 0:02:12]} 21. Qxa7 {[%clk 0:02:56.4]} 21... Qe1+ {[%clk 0:02:10]} 22. Bf1
{[%clk 0:02:56]} 22... Bb5 {[%clk 0:02:08.6]} 23. h3 {[%clk 0:02:24.4]} 23...
Qxf1+ {[%clk 0:02:00.1]} 24. Kh2 {[%clk 0:02:24.7]} 24... Bc6 {[%clk 0:01:54.6]}
25. f3 {[%clk 0:02:00.7]} 25... Qe2 {[%clk 0:01:11.8]} 26. Qb8+ {[%clk
0:01:58.3]} 26... Kg7 {[%clk 0:01:12.2]} 27. Qxc7 {[%clk 0:01:58.5]} 27... d4
{[%clk 0:01:04.5]} 28. cxd4 {[%clk 0:01:53.1]} 28... Bxf3 {[%clk 0:01:04.4]} 29.
Qg3 {[%clk 0:01:51.9]} 29... Bd5 {[%clk 0:00:59.9]} 30. b3 {[%clk 0:01:45.9]}
30... b5 {[%clk 0:00:51.9]} 31. a4 {[%clk 0:01:39.5]} 31... bxa4 {[%clk
0:00:51.2]} 32. bxa4 {[%clk 0:01:40.4]} 32... h5 {[%clk 0:00:51.6]} 33. a5
{[%clk 0:01:35.9]} 33... h4 {[%clk 0:00:43.8]} 34. Qg5 {[%clk 0:01:34.4]} 34...
Qe4 {[%clk 0:00:44.1]} 35. c3 {[%clk 0:01:18.1]} 35... f6 {[%clk 0:00:37.8]} 36.
Qd2 {[%clk 0:01:18.1]} 36... g5 {[%clk 0:00:33.5]} 37. a6 {[%clk 0:00:59.5]}
37... Kg6 {[%clk 0:00:33.8]} 38. a7 {[%clk 0:00:57.1]} 38... f5 {[%clk 0:00:34]}
39. Kg1 {[%clk 0:00:34.2]} 39... g4 {[%clk 0:00:32.1]} 40. hxg4 {[%clk
0:00:31.1]} 40... fxg4 {[%clk 0:00:33]} 41. c4 {[%clk 0:00:11.6]} 41... g3
{[%clk 0:00:31.9]} 42. Kf1 {[%clk 0:00:01.9]} 42... Bxc4+ {[%clk 0:00:31.1]} 43.
Kg1 {[%clk 0:00:02.5]} 43... Qb1+ {[%clk 0:00:31.3]} 0-1

[Event "Late-Titled-Tuesday-Blitz-April-02-2024"]
[Site "Chess.com"]
[Date "2024.04.02"]
[Round "5"]
[White "RodokininEV"]
[Black "DrVelja"]
[Result "0-1"]
[WhiteElo "2701"]
[BlackElo "3020"]
[TimeControl "180+1"]
[EndTime "14:53:15 PDT"]
[Termination "DrVelja won by checkmate"]

1. e4 {[%clk 0:03:00.9]} 1... c5 {[%clk 0:02:59.5]} 2. Nf3 {[%clk 0:02:58.1]}
2... Nc6 {[%clk 0:02:57.1]} 3. d4 {[%clk 0:02:57.6]} 3... cxd4 {[%clk 0:02:58]}
4. Nxd4 {[%clk 0:02:58.5]} 4... g6 {[%clk 0:02:53.2]} 5. c4 {[%clk 0:02:54.9]}
5... Bg7 {[%clk 0:02:53.6]} 6. Be3 {[%clk 0:02:32.7]} 6... d6 {[%clk 0:02:53.8]}
7. Nc3 {[%clk 0:02:32.5]} 7... Qb6 {[%clk 0:02:54]} 8. Nb3 {[%clk 0:02:30.8]}
8... Bxc3+ {[%clk 0:02:53.5]} 9. bxc3 {[%clk 0:02:30.1]} 9... Qc7 {[%clk
0:02:54.4]} 10. Be2 {[%clk 0:02:25.5]} 10... Nf6 {[%clk 0:02:54.7]} 11. f3
{[%clk 0:02:24.6]} 11... b6 {[%clk 0:02:54.7]} 12. O-O {[%clk 0:02:23]} 12...
O-O {[%clk 0:02:55.2]} 13. a4 {[%clk 0:02:11.7]} 13... Ne5 {[%clk 0:02:54.3]}
14. Qd4 {[%clk 0:01:57.6]} 14... Be6 {[%clk 0:02:42.5]} 15. Nd2 {[%clk
0:01:37.8]} 15... Rfc8 {[%clk 0:02:19.9]} 16. a5 {[%clk 0:01:38]} 16... Nc6
{[%clk 0:02:20.1]} 17. axb6 {[%clk 0:01:35.5]} 17... Nxd4 {[%clk 0:02:20.2]} 18.
bxc7 {[%clk 0:01:35.5]} 18... Nxe2+ {[%clk 0:02:20.9]} 19. Kf2 {[%clk
0:01:35.5]} 19... Nxc3 {[%clk 0:02:17.5]} 20. Bd4 {[%clk 0:01:26.7]} 20...
Ncxe4+ {[%clk 0:02:00.6]} 21. fxe4 {[%clk 0:01:24.7]} 21... Rxc7 {[%clk
0:01:58.2]} 22. Bxf6 {[%clk 0:01:23.7]} 22... exf6 {[%clk 0:01:59.1]} 23. Ra4
{[%clk 0:01:24.2]} 23... a5 {[%clk 0:01:47.8]} 24. Ke3 {[%clk 0:01:23.7]} 24...
Bd7 {[%clk 0:01:42.7]} 25. Ra3 {[%clk 0:01:21.5]} 25... Kg7 {[%clk 0:01:43.2]}
26. Rb1 {[%clk 0:01:16.7]} 26... f5 {[%clk 0:01:33.2]} 27. Rb6 {[%clk
0:01:11.4]} 27... fxe4 {[%clk 0:01:33.1]} 28. Kxe4 {[%clk 0:01:09.9]} 28... Re8+
{[%clk 0:01:21]} 29. Kd4 {[%clk 0:01:09.9]} 29... Re2 {[%clk 0:01:18.8]} 30. Ne4
{[%clk 0:01:00.6]} 30... Rxg2 {[%clk 0:01:13.6]} 31. Rxa5 {[%clk 0:00:56.1]}
31... Rg4 {[%clk 0:01:02.5]} 32. Ke3 {[%clk 0:00:27.9]} 32... Rxc4 {[%clk
0:00:59]} 33. Nxd6 {[%clk 0:00:28.1]} 33... Rc3+ {[%clk 0:00:59.1]} 34. Kf2
{[%clk 0:00:27.1]} 34... Rf4+ {[%clk 0:00:45.7]} 35. Ke2 {[%clk 0:00:27.1]}
35... Rh3 {[%clk 0:00:40.5]} 36. Ra7 {[%clk 0:00:23.1]} 36... Bg4+ {[%clk
0:00:38.6]} 37. Ke1 {[%clk 0:00:21.3]} 37... Rd3 {[%clk 0:00:33.2]} 38. Ne8+
{[%clk 0:00:20.1]} 38... Kh6 {[%clk 0:00:32.6]} 39. Nf6 {[%clk 0:00:12.1]} 39...
Rd1# {[%clk 0:00:32.3]} 0-1